[Event "*** Titled Tuesday Blitz"]
[Site "Chess.com"]
[Date "2020.11.10"]
[Round "5"]
[White "tandaleo"]
[Black "NefeLV"]
[Result "1-0"]
[WhiteElo "2301"]
[BlackElo "1759"]
[TimeControl "180+1"]
[EndTime "10:57:41 PST"]
[Termination "tandaleo won by checkmate"]

1. d4 {[%clk 0:03:00.9]} 1... g6 {[%clk 0:02:57]} 2. c4 {[%clk 0:02:58.7]} 2...
Bg7 {[%clk 0:02:57.9]} 3. e4 {[%clk 0:02:57.8]} 3... d6 {[%clk 0:02:58.2]} 4.
Nc3 {[%clk 0:02:57.3]} 4... Nf6 {[%clk 0:02:58.5]} 5. Be3 {[%clk 0:02:57.6]}
5... O-O {[%clk 0:02:57.6]} 6. Be2 {[%clk 0:02:56.8]} 6... Nbd7 {[%clk
0:02:57.6]} 7. g4 {[%clk 0:02:53.4]} 7... c5 {[%clk 0:02:56.1]} 8. g5 {[%clk
0:02:43.3]} 8... Ne8 {[%clk 0:02:55.4]} 9. h4 {[%clk 0:02:36.5]} 9... cxd4
{[%clk 0:02:50.6]} 10. Bxd4 {[%clk 0:02:37.4]} 10... e5 {[%clk 0:02:50.1]} 11.
Be3 {[%clk 0:02:35.8]} 11... Nc5 {[%clk 0:02:45.7]} 12. h5 {[%clk 0:02:33.8]}
12... gxh5 {[%clk 0:02:38.5]} 13. Bxh5 {[%clk 0:02:28]} 13... Qa5 {[%clk
0:02:37.6]} 14. Qd2 {[%clk 0:01:35.6]} 14... Be6 {[%clk 0:02:31.6]} 15. Be2
{[%clk 0:01:17.5]} 15... Qb4 {[%clk 0:02:27.2]} 16. Nf3 {[%clk 0:00:35]} 16...
Bxc4 {[%clk 0:02:24.3]} 17. Bxc4 {[%clk 0:00:22]} 17... Qxc4 {[%clk 0:02:23.9]}
18. Qc2 {[%clk 0:00:17.9]} 18... Nd3+ {[%clk 0:02:19.1]} 19. Kd2 {[%clk
0:00:18.2]} 19... Nb4 {[%clk 0:02:11.9]} 20. Qb3 {[%clk 0:00:16.3]} 20... Qd3+
{[%clk 0:02:10.6]} 21. Kc1 {[%clk 0:00:16.3]} 21... a5 {[%clk 0:02:02.9]} 22.
Rd1 {[%clk 0:00:16.1]} 22... Qa6 {[%clk 0:02:01.6]} 23. a3 {[%clk 0:00:16.7]}
23... Nd3+ {[%clk 0:01:56.6]} 24. Kc2 {[%clk 0:00:15.7]} 24... Nf4 {[%clk
0:01:54.4]} 25. Nh4 {[%clk 0:00:08.4]} 25... Nc7 {[%clk 0:01:47.5]} 26. Nf5
{[%clk 0:00:08.3]} 26... Rad8 {[%clk 0:01:43.3]} 27. Rd2 {[%clk 0:00:04.9]}
27... Nce6 {[%clk 0:01:43]} 28. Rh1 {[%clk 0:00:04.2]} 28... Nxg5 {[%clk
0:01:39.8]} 29. Bxf4 {[%clk 0:00:03.4]} 29... exf4 {[%clk 0:01:39.5]} 30. f3
{[%clk 0:00:03.7]} 30... Ne6 {[%clk 0:01:34.4]} 31. Rdh2 {[%clk 0:00:02.4]}
31... h6 {[%clk 0:01:29]} 32. Nxh6+ {[%clk 0:00:02.7]} 32... Bxh6 {[%clk
0:01:28.6]} 33. Rxh6 {[%clk 0:00:03.6]} 33... Nd4+ {[%clk 0:01:28.8]} 34. Kb1
{[%clk 0:00:03.8]} 34... Nxb3 {[%clk 0:01:27.8]} 35. Rg1# {[%clk 0:00:04.3]} 1-0

[Event "*** Titled Tuesday Blitz"]
[Site "Chess.com"]
[Date "2020.11.10"]
[Round "5"]
[White "GM_Crest"]
[Black "gilbert_gm"]
[Result "1-0"]
[WhiteElo "2740"]
[BlackElo "2552"]
[TimeControl "180+1"]
[EndTime "10:57:46 PST"]
[Termination "GM_Crest won by resignation"]

1. d4 {[%clk 0:03:00.9]} 1... Nf6 {[%clk 0:02:59.1]} 2. c4 {[%clk 0:03:00.3]}
2... e6 {[%clk 0:02:58.9]} 3. Nc3 {[%clk 0:02:59]} 3... Bb4 {[%clk 0:02:59]} 4.
e3 {[%clk 0:02:58.9]} 4... O-O {[%clk 0:02:58.4]} 5. Ne2 {[%clk 0:02:59.4]} 5...
d5 {[%clk 0:02:56.7]} 6. a3 {[%clk 0:02:59.1]} 6... Be7 {[%clk 0:02:55.4]} 7.
cxd5 {[%clk 0:02:58.8]} 7... exd5 {[%clk 0:02:56.3]} 8. g3 {[%clk 0:02:59.3]}
8... c6 {[%clk 0:02:54.4]} 9. Bg2 {[%clk 0:02:59.7]} 9... Bg4 {[%clk 0:02:43.1]}
10. h3 {[%clk 0:02:59.1]} 10... Bh5 {[%clk 0:02:40.6]} 11. g4 {[%clk 0:02:59.1]}
11... Bg6 {[%clk 0:02:37]} 12. Nf4 {[%clk 0:02:35.2]} 12... Bd6 {[%clk
0:02:35.1]} 13. O-O {[%clk 0:02:32.7]} 13... Qd7 {[%clk 0:02:10]} 14. g5 {[%clk
0:02:19.6]} 14... Bxf4 {[%clk 0:01:56.3]} 15. exf4 {[%clk 0:02:17.6]} 15... Ne4
{[%clk 0:01:55.8]} 16. Nxe4 {[%clk 0:01:46.7]} 16... Bxe4 {[%clk 0:01:56.7]} 17.
Bxe4 {[%clk 0:01:37.3]} 17... dxe4 {[%clk 0:01:57.6]} 18. Qg4 {[%clk 0:01:37.4]}
18... Qd6 {[%clk 0:01:47.6]} 19. f5 {[%clk 0:01:36]} 19... Na6 {[%clk
0:01:38.4]} 20. Bf4 {[%clk 0:01:34.2]} 20... Qd7 {[%clk 0:01:35]} 21. f6 {[%clk
0:01:25.5]} 21... Qxd4 {[%clk 0:01:23.8]} 22. Rfd1 {[%clk 0:01:18.6]} 22... Qc4
{[%clk 0:01:18.1]} 23. fxg7 {[%clk 0:01:17.3]} 23... Rfd8 {[%clk 0:01:11]} 24.
Be5 {[%clk 0:01:09.9]} 24... Nc5 {[%clk 0:01:03.1]} 25. Bf6 {[%clk 0:01:07]}
25... Rxd1+ {[%clk 0:01:01.3]} 26. Rxd1 {[%clk 0:01:07.9]} 26... Nd3 {[%clk
0:01:01.6]} 27. g6 {[%clk 0:00:45.1]} 27... Qc5 {[%clk 0:00:25.6]} 28. gxh7+
{[%clk 0:00:40.7]} 28... Kxh7 {[%clk 0:00:26]} 29. Qxe4+ {[%clk 0:00:41.3]} 1-0

[Event "*** Titled Tuesday Blitz"]
[Site "Chess.com"]
[Date "2020.11.10"]
[Round "5"]
[White "Ladislav1969"]
[Black "maximnovik"]
[Result "0-1"]
[WhiteElo "2273"]
[BlackElo "2517"]
[TimeControl "180+1"]
[EndTime "10:57:46 PST"]
[Termination "maximnovik won by checkmate"]

1. e4 {[%clk 0:03:00.9]} 1... c6 {[%clk 0:02:52.2]} 2. d4 {[%clk 0:03:00.8]}
2... d5 {[%clk 0:02:52.6]} 3. e5 {[%clk 0:03:01.7]} 3... Bf5 {[%clk 0:02:51.6]}
4. Nd2 {[%clk 0:03:02.1]} 4... c5 {[%clk 0:02:51.2]} 5. dxc5 {[%clk 0:02:59.6]}
5... Nc6 {[%clk 0:02:50.9]} 6. Ngf3 {[%clk 0:02:58.8]} 6... e6 {[%clk
0:02:49.8]} 7. Nb3 {[%clk 0:02:58.5]} 7... Bxc5 {[%clk 0:02:49.5]} 8. Nxc5
{[%clk 0:02:57.7]} 8... Qa5+ {[%clk 0:02:48.6]} 9. c3 {[%clk 0:02:57.8]} 9...
Qxc5 {[%clk 0:02:48.5]} 10. Be3 {[%clk 0:02:57.5]} 10... Qa5 {[%clk 0:02:48.5]}
11. Nd4 {[%clk 0:02:40.5]} 11... Nxd4 {[%clk 0:02:46.6]} 12. Bxd4 {[%clk
0:02:37.5]} 12... Ne7 {[%clk 0:02:46.7]} 13. Qe2 {[%clk 0:02:32.5]} 13... O-O
{[%clk 0:02:45.2]} 14. g4 {[%clk 0:02:28.5]} 14... Be4 {[%clk 0:02:42.4]} 15. f3
{[%clk 0:02:28.2]} 15... Bg6 {[%clk 0:02:42.3]} 16. Bg2 {[%clk 0:02:25.2]} 16...
Nc6 {[%clk 0:02:42]} 17. O-O {[%clk 0:02:23.8]} 17... Nxd4 {[%clk 0:02:41.6]}
18. cxd4 {[%clk 0:02:24.1]} 18... Qb4 {[%clk 0:02:39.5]} 19. Rfd1 {[%clk
0:02:19.2]} 19... Rac8 {[%clk 0:02:39.9]} 20. Qd2 {[%clk 0:02:13.9]} 20... Qa4
{[%clk 0:02:32]} 21. b3 {[%clk 0:02:13.7]} 21... Qa3 {[%clk 0:02:25.1]} 22. Rdc1
{[%clk 0:02:11.2]} 22... h5 {[%clk 0:02:21.1]} 23. h3 {[%clk 0:02:09.5]} 23...
a5 {[%clk 0:02:12.2]} 24. Bf1 {[%clk 0:02:07.5]} 24... a4 {[%clk 0:02:09]} 25.
Rc3 {[%clk 0:01:51.8]} 25... axb3 {[%clk 0:01:55.7]} 26. Rxb3 {[%clk 0:01:50.2]}
26... Qa7 {[%clk 0:01:56.1]} 27. Rb2 {[%clk 0:01:41.2]} 27... Rc7 {[%clk
0:01:47.8]} 28. Qb4 {[%clk 0:01:27.8]} 28... Rfc8 {[%clk 0:01:45.1]} 29. Qb6
{[%clk 0:01:25.6]} 29... Qa3 {[%clk 0:01:40.5]} 30. Qb3 {[%clk 0:01:22.4]} 30...
Qe7 {[%clk 0:01:39.5]} 31. a4 {[%clk 0:01:14.7]} 31... Rc3 {[%clk 0:01:38.9]}
32. Qxb7 {[%clk 0:01:13.4]} 32... Qh4 {[%clk 0:01:33.9]} 33. Rf2 {[%clk
0:01:06.5]} 33... Rc2 {[%clk 0:01:27.4]} 34. Be2 {[%clk 0:00:49.2]} 34... Qxh3
{[%clk 0:01:22.3]} 35. Rg2 {[%clk 0:00:41.7]} 35... hxg4 {[%clk 0:01:18.5]} 36.
fxg4 {[%clk 0:00:38.7]} 36... Qe3+ {[%clk 0:01:17.1]} 37. Kh2 {[%clk 0:00:34.5]}
37... R8c3 {[%clk 0:01:17.2]} 38. Qb8+ {[%clk 0:00:27.3]} 38... Kh7 {[%clk
0:01:13.8]} 39. Rh1 {[%clk 0:00:27.1]} 39... Rxe2 {[%clk 0:01:11.5]} 40. Rxe2
{[%clk 0:00:24.5]} 40... Qg3# {[%clk 0:01:11.3]} 0-1

[Event "*** Titled Tuesday Blitz"]
[Site "Chess.com"]
[Date "2020.11.10"]
[Round "5"]
[White "Tenamu"]
[Black "GameOverBro"]
[Result "0-1"]
[WhiteElo "2315"]
[BlackElo "2512"]
[TimeControl "180+1"]
[EndTime "10:57:50 PST"]
[Termination "GameOverBro won by checkmate"]

1. d4 {[%clk 0:02:57]} 1... d6 {[%clk 0:02:59.8]} 2. e4 {[%clk 0:02:54.5]} 2...
Nf6 {[%clk 0:03:00]} 3. Nc3 {[%clk 0:02:52.4]} 3... e5 {[%clk 0:03:00.4]} 4.
dxe5 {[%clk 0:02:52]} 4... dxe5 {[%clk 0:03:01.3]} 5. Qxd8+ {[%clk 0:02:52.7]}
5... Kxd8 {[%clk 0:03:02]} 6. Bc4 {[%clk 0:02:53]} 6... Ke8 {[%clk 0:03:02.2]}
7. Bg5 {[%clk 0:02:51.5]} 7... Nbd7 {[%clk 0:03:00.5]} 8. O-O-O {[%clk
0:02:50.5]} 8... a6 {[%clk 0:02:59.2]} 9. Nf3 {[%clk 0:02:46]} 9... Bd6 {[%clk
0:02:52.6]} 10. Rhe1 {[%clk 0:02:43.5]} 10... b5 {[%clk 0:02:46.8]} 11. Bb3
{[%clk 0:02:41.9]} 11... Bb7 {[%clk 0:02:43.2]} 12. Nh4 {[%clk 0:02:32.4]} 12...
g6 {[%clk 0:02:39.1]} 13. f4 {[%clk 0:02:31.5]} 13... h6 {[%clk 0:02:32.6]} 14.
Bxf6 {[%clk 0:02:30.8]} 14... Nxf6 {[%clk 0:02:33.5]} 15. Nf3 {[%clk 0:02:30.9]}
15... Nd7 {[%clk 0:02:24.5]} 16. Nd5 {[%clk 0:02:23.9]} 16... Rc8 {[%clk
0:01:57.4]} 17. f5 {[%clk 0:02:15.9]} 17... Nc5 {[%clk 0:01:35.8]} 18. fxg6
{[%clk 0:02:14.4]} 18... Nxb3+ {[%clk 0:01:33]} 19. axb3 {[%clk 0:02:13.8]}
19... fxg6 {[%clk 0:01:33.5]} 20. Nh4 {[%clk 0:02:08.9]} 20... Kf7 {[%clk
0:01:24.3]} 21. Rf1+ {[%clk 0:02:07.6]} 21... Kg7 {[%clk 0:01:22.4]} 22. Rf6
{[%clk 0:02:08.1]} 22... Bxd5 {[%clk 0:01:07.5]} 23. Rxg6+ {[%clk 0:02:07]}
23... Kh7 {[%clk 0:01:07.3]} 24. exd5 {[%clk 0:02:06.7]} 24... Rhf8 {[%clk
0:00:35.8]} 25. Re6 {[%clk 0:02:02.8]} 25... Rf2 {[%clk 0:00:33.6]} 26. h3
{[%clk 0:02:00]} 26... a5 {[%clk 0:00:23]} 27. g4 {[%clk 0:01:58.6]} 27... a4
{[%clk 0:00:22]} 28. bxa4 {[%clk 0:01:58.3]} 28... bxa4 {[%clk 0:00:20.1]} 29.
Nf5 {[%clk 0:01:58.8]} 29... a3 {[%clk 0:00:20.2]} 30. bxa3 {[%clk 0:01:30.7]}
30... Bxa3+ {[%clk 0:00:19.8]} 31. Kb1 {[%clk 0:01:30.6]} 31... Rb8+ {[%clk
0:00:20.1]} 32. Ka1 {[%clk 0:01:30.5]} 32... Bb2+ {[%clk 0:00:18.7]} 33. Ka2
{[%clk 0:01:30.7]} 33... Rxc2 {[%clk 0:00:18]} 34. Rxh6+ {[%clk 0:01:28.6]}
34... Kg8 {[%clk 0:00:18.6]} 35. Rg6+ {[%clk 0:01:28.9]} 35... Kf7 {[%clk
0:00:18.5]} 36. Rg7+ {[%clk 0:01:28]} 36... Kf6 {[%clk 0:00:16.8]} 37. Rf1
{[%clk 0:01:18.9]} 37... Bd4+ {[%clk 0:00:16.9]} 38. Ka3 {[%clk 0:01:13.5]}
38... Bc5+ {[%clk 0:00:17.2]} 39. Ka4 {[%clk 0:01:12.8]} 39... Ra2# {[%clk
0:00:17.8]} 0-1

[Event "*** Titled Tuesday Blitz"]
[Site "Chess.com"]
[Date "2020.11.10"]
[Round "5"]
[White "GOGIEFF"]
[Black "BocharovD"]
[Result "1/2-1/2"]
[WhiteElo "2893"]
[BlackElo "2775"]
[TimeControl "180+1"]
[EndTime "10:57:51 PST"]
[Termination "Game drawn by agreement"]

1. d4 {[%clk 0:03:00.9]} 1... d5 {[%clk 0:02:55.2]} 2. c4 {[%clk 0:02:57.7]}
2... e6 {[%clk 0:02:55.5]} 3. Nc3 {[%clk 0:02:57.2]} 3... Nf6 {[%clk 0:02:54.9]}
4. cxd5 {[%clk 0:02:56.9]} 4... exd5 {[%clk 0:02:54.4]} 5. Bg5 {[%clk
0:02:56.6]} 5... Be7 {[%clk 0:02:54.4]} 6. e3 {[%clk 0:02:56.7]} 6... O-O {[%clk
0:02:54.6]} 7. Bd3 {[%clk 0:02:54.2]} 7... c6 {[%clk 0:02:54.5]} 8. Qc2 {[%clk
0:02:52.1]} 8... Nbd7 {[%clk 0:02:48.7]} 9. Nf3 {[%clk 0:02:52.1]} 9... Re8
{[%clk 0:02:47]} 10. O-O {[%clk 0:02:51.7]} 10... Nf8 {[%clk 0:02:46.9]} 11. h3
{[%clk 0:02:51.9]} 11... Be6 {[%clk 0:02:40.4]} 12. Ne5 {[%clk 0:02:49.3]} 12...
N6d7 {[%clk 0:02:26.4]} 13. Bxe7 {[%clk 0:02:50.2]} 13... Rxe7 {[%clk
0:02:14.5]} 14. f4 {[%clk 0:02:51.1]} 14... f6 {[%clk 0:02:09.1]} 15. Nf3 {[%clk
0:02:51.1]} 15... Rc8 {[%clk 0:02:06.2]} 16. Rae1 {[%clk 0:02:49.2]} 16... Bf7
{[%clk 0:02:01.9]} 17. f5 {[%clk 0:02:42.5]} 17... c5 {[%clk 0:01:51.4]} 18. Qf2
{[%clk 0:02:42.6]} 18... cxd4 {[%clk 0:01:45.5]} 19. exd4 {[%clk 0:02:41.8]}
19... Nb6 {[%clk 0:01:42.8]} 20. Rxe7 {[%clk 0:02:29.7]} 20... Qxe7 {[%clk
0:01:42.7]} 21. Re1 {[%clk 0:02:30.6]} 21... Qd7 {[%clk 0:01:39]} 22. Ne2 {[%clk
0:02:12.4]} 22... Qd6 {[%clk 0:01:25.1]} 23. Qg3 {[%clk 0:01:57.4]} 23... Qxg3
{[%clk 0:01:21.2]} 24. Nxg3 {[%clk 0:01:57]} 24... Nfd7 {[%clk 0:01:21.7]} 25.
Ne2 {[%clk 0:01:52.1]} 25... Re8 {[%clk 0:01:21.5]} 26. Kf2 {[%clk 0:01:50]}
26... Kf8 {[%clk 0:01:12.2]} 27. g4 {[%clk 0:01:49.8]} 27... Nc4 {[%clk
0:01:09.2]} 28. b3 {[%clk 0:01:45.2]} 28... Nd6 {[%clk 0:01:02.1]} 29. Nf4
{[%clk 0:01:42.6]} 29... Rxe1 {[%clk 0:01:01.4]} 30. Kxe1 {[%clk 0:01:43.5]}
30... Ke7 {[%clk 0:01:00.9]} 31. h4 {[%clk 0:01:41.7]} 31... h6 {[%clk
0:00:59.5]} 32. Kd2 {[%clk 0:01:38]} 32... Nb8 {[%clk 0:00:55.9]} 33. Ke3 {[%clk
0:01:37]} 33... Nc6 {[%clk 0:00:52]} 34. g5 {[%clk 0:01:30]} 34... hxg5 {[%clk
0:00:52.5]} 35. hxg5 {[%clk 0:01:30.9]} 35... fxg5 {[%clk 0:00:45.7]} 36. Nxg5
{[%clk 0:01:31.8]} 36... Bg8 {[%clk 0:00:45.9]} 37. Bb1 {[%clk 0:01:20.2]} 37...
Kf6 {[%clk 0:00:42]} 38. Nge6 {[%clk 0:01:11.2]} 38... Bxe6 {[%clk 0:00:31.2]}
39. fxe6 {[%clk 0:01:11.5]} 39... Ne7 {[%clk 0:00:30.6]} 40. Nh5+ {[%clk
0:01:11.6]} 40... Kxe6 {[%clk 0:00:29.6]} 41. Nxg7+ {[%clk 0:01:11.7]} 41... Kf6
{[%clk 0:00:29.4]} 42. Nh5+ {[%clk 0:01:11.5]} 1/2-1/2

[Event "*** Titled Tuesday Blitz"]
[Site "Chess.com"]
[Date "2020.11.10"]
[Round "5"]
[White "LaStreetCmaMaison"]
[Black "lilleper1"]
[Result "1-0"]
[WhiteElo "2641"]
[BlackElo "2819"]
[TimeControl "180+1"]
[EndTime "10:57:52 PST"]
[Termination "LaStreetCmaMaison won by resignation"]

1. e4 {[%clk 0:02:58.6]} 1... c5 {[%clk 0:02:59.4]} 2. Nf3 {[%clk 0:02:57.3]}
2... e6 {[%clk 0:02:59.7]} 3. d4 {[%clk 0:02:57.3]} 3... cxd4 {[%clk 0:03:00.6]}
4. Nxd4 {[%clk 0:02:58.2]} 4... Nc6 {[%clk 0:03:00.6]} 5. Nc3 {[%clk 0:02:53]}
5... Qc7 {[%clk 0:03:00.7]} 6. Be3 {[%clk 0:02:51.5]} 6... a6 {[%clk 0:03:00.8]}
7. Be2 {[%clk 0:02:50.2]} 7... Nf6 {[%clk 0:03:00.4]} 8. O-O {[%clk 0:02:50.3]}
8... Bb4 {[%clk 0:03:00.5]} 9. Na4 {[%clk 0:02:46.4]} 9... Be7 {[%clk
0:03:00.4]} 10. c4 {[%clk 0:02:42.9]} 10... Nxe4 {[%clk 0:02:58.6]} 11. c5
{[%clk 0:02:38.6]} 11... O-O {[%clk 0:02:57.5]} 12. Rc1 {[%clk 0:02:37.4]} 12...
f5 {[%clk 0:02:42]} 13. Bf3 {[%clk 0:02:36.1]} 13... Ng5 {[%clk 0:02:40.7]} 14.
Re1 {[%clk 0:02:21.9]} 14... e5 {[%clk 0:02:19.3]} 15. Nb6 {[%clk 0:02:15.5]}
15... exd4 {[%clk 0:02:01.5]} 16. Nxa8 {[%clk 0:02:11.7]} 16... Nxf3+ {[%clk
0:02:00]} 17. Qxf3 {[%clk 0:02:09.1]} 17... Qb8 {[%clk 0:01:59.9]} 18. Qd5+
{[%clk 0:01:29.2]} 18... Kh8 {[%clk 0:01:59]} 19. Bxd4 {[%clk 0:01:29.7]} 19...
Qxa8 {[%clk 0:01:58]} 20. Rxe7 {[%clk 0:00:58.8]} 20... Nxe7 {[%clk 0:01:53.6]}
21. Qd6 {[%clk 0:00:59.4]} 21... Ng6 {[%clk 0:01:16.8]} 22. Re1 {[%clk
0:00:59.4]} 22... b6 {[%clk 0:01:11.9]} 23. Re7 {[%clk 0:00:49.1]} 23... Qc6
{[%clk 0:00:39.4]} 24. Rxg7 {[%clk 0:00:46.6]} 24... Qxd6 {[%clk 0:00:29.7]} 25.
cxd6 {[%clk 0:00:46.3]} 1-0

[Event "*** Titled Tuesday Blitz"]
[Site "Chess.com"]
[Date "2020.11.10"]
[Round "5"]
[White "Nils_03"]
[Black "Nikithebest"]
[Result "0-1"]
[WhiteElo "2241"]
[BlackElo "2440"]
[TimeControl "180+1"]
[EndTime "10:57:52 PST"]
[Termination "Nikithebest won by resignation"]

1. Nf3 {[%clk 0:03:00.9]} 1... e6 {[%clk 0:02:58.7]} 2. g3 {[%clk 0:03:01.8]}
2... g5 {[%clk 0:02:55.8]} 3. h3 {[%clk 0:02:52.8]} 3... h5 {[%clk 0:02:55.2]}
4. Bg2 {[%clk 0:02:52.3]} 4... Bg7 {[%clk 0:02:51.8]} 5. d4 {[%clk 0:02:51.2]}
5... g4 {[%clk 0:02:49.6]} 6. hxg4 {[%clk 0:02:50.8]} 6... hxg4 {[%clk
0:02:50.5]} 7. Rxh8 {[%clk 0:02:50.9]} 7... Bxh8 {[%clk 0:02:51.4]} 8. Nh4
{[%clk 0:02:44.9]} 8... Nc6 {[%clk 0:02:41.9]} 9. c3 {[%clk 0:02:41.7]} 9... d6
{[%clk 0:02:33.6]} 10. e4 {[%clk 0:02:34.2]} 10... e5 {[%clk 0:02:24.2]} 11. d5
{[%clk 0:02:32.1]} 11... Nce7 {[%clk 0:02:20]} 12. Bg5 {[%clk 0:02:29.8]} 12...
Bf6 {[%clk 0:02:17.3]} 13. Qd2 {[%clk 0:02:27.1]} 13... Nxd5 {[%clk 0:02:14.7]}
14. Bxf6 {[%clk 0:02:21.9]} 14... Ndxf6 {[%clk 0:02:15.6]} 15. Na3 {[%clk
0:02:15.6]} 15... Be6 {[%clk 0:02:15.1]} 16. O-O-O {[%clk 0:02:13.1]} 16... Qd7
{[%clk 0:02:13.8]} 17. Kb1 {[%clk 0:01:54.8]} 17... O-O-O {[%clk 0:02:09.9]} 18.
Qg5 {[%clk 0:01:49.2]} 18... Qa4 {[%clk 0:02:05.3]} 19. Rc1 {[%clk 0:01:37.3]}
19... Nd7 {[%clk 0:02:04.7]} 20. Nf5 {[%clk 0:01:31.7]} 20... Ngf6 {[%clk
0:02:02.4]} 21. Ne7+ {[%clk 0:01:22.9]} 21... Kb8 {[%clk 0:02:01.4]} 22. Nd5
{[%clk 0:01:23.7]} 22... Rg8 {[%clk 0:01:50.5]} 23. Qd2 {[%clk 0:01:17.8]} 23...
Nxe4 {[%clk 0:01:46.8]} 24. Qd3 {[%clk 0:00:47.7]} 24... Ndc5 {[%clk 0:01:45.4]}
25. Qd1 {[%clk 0:00:39.3]} 25... Qxd1 {[%clk 0:01:44.5]} 26. Rxd1 {[%clk
0:00:38.6]} 26... Nxf2 {[%clk 0:01:45.3]} 27. Rf1 {[%clk 0:00:32.5]} 27... Nfe4
{[%clk 0:01:44.8]} 28. Ne7 {[%clk 0:00:18.6]} 28... Rh8 {[%clk 0:01:36.7]} 29.
Re1 {[%clk 0:00:14.8]} 29... f5 {[%clk 0:01:32]} 30. Bxe4 {[%clk 0:00:13.9]}
30... Nxe4 {[%clk 0:01:29]} 31. Nc2 {[%clk 0:00:12.7]} 31... Nxg3 {[%clk
0:01:26.2]} 32. Ne3 {[%clk 0:00:11.2]} 32... f4 {[%clk 0:01:24.8]} 33. N3d5
{[%clk 0:00:10.7]} 33... Bxd5 {[%clk 0:01:23.4]} 34. Nxd5 {[%clk 0:00:10.5]}
34... Rh1 {[%clk 0:01:22]} 35. Rxh1 {[%clk 0:00:10.2]} 35... Nxh1 {[%clk
0:01:22.9]} 36. Kc2 {[%clk 0:00:11]} 36... g3 {[%clk 0:01:23.3]} 37. Kd2 {[%clk
0:00:10.9]} 37... g2 {[%clk 0:01:22.8]} 0-1

[Event "*** Titled Tuesday Blitz"]
[Site "Chess.com"]
[Date "2020.11.10"]
[Round "5"]
[White "vrekhson"]
[Black "Bodnar_Mykola"]
[Result "0-1"]
[WhiteElo "2196"]
[BlackElo "2374"]
[TimeControl "180+1"]
[EndTime "10:57:52 PST"]
[Termination "Bodnar_Mykola won by resignation"]

1. e4 {[%clk 0:02:31.1]} 1... c5 {[%clk 0:02:59]} 2. c3 {[%clk 0:02:30.9]} 2...
Nf6 {[%clk 0:02:57.3]} 3. e5 {[%clk 0:02:30.8]} 3... Nd5 {[%clk 0:02:57.2]} 4.
d4 {[%clk 0:02:29.8]} 4... cxd4 {[%clk 0:02:58]} 5. Nf3 {[%clk 0:02:28]} 5...
Nc6 {[%clk 0:02:58]} 6. Bc4 {[%clk 0:02:26.6]} 6... Nb6 {[%clk 0:02:58]} 7. Bb3
{[%clk 0:02:26.7]} 7... d6 {[%clk 0:02:56.9]} 8. exd6 {[%clk 0:02:25.1]} 8... e6
{[%clk 0:02:54.8]} 9. cxd4 {[%clk 0:02:24.2]} 9... Bxd6 {[%clk 0:02:54.6]} 10.
O-O {[%clk 0:02:23.9]} 10... O-O {[%clk 0:02:54]} 11. Nc3 {[%clk 0:02:23.1]}
11... Nd5 {[%clk 0:02:40.7]} 12. Bc2 {[%clk 0:02:21.3]} 12... Be7 {[%clk
0:02:29.5]} 13. a3 {[%clk 0:02:15.4]} 13... b6 {[%clk 0:02:26.5]} 14. Re1 {[%clk
0:02:14.8]} 14... Bb7 {[%clk 0:02:26.1]} 15. Ne4 {[%clk 0:02:11.1]} 15... g6
{[%clk 0:02:21.4]} 16. Neg5 {[%clk 0:02:05.4]} 16... Bf6 {[%clk 0:02:18.1]} 17.
h4 {[%clk 0:02:04.6]} 17... Rc8 {[%clk 0:02:10.7]} 18. h5 {[%clk 0:00:53.4]}
18... Nxd4 {[%clk 0:01:50.7]} 19. hxg6 {[%clk 0:00:54.3]} 19... Nxc2 {[%clk
0:01:26.9]} 20. Nd4 {[%clk 0:00:55.2]} 20... hxg6 {[%clk 0:01:19.5]} 21. Ngxe6
{[%clk 0:00:52.7]} 21... fxe6 {[%clk 0:01:19.4]} 22. Nxe6 {[%clk 0:00:53.3]}
22... Qd6 {[%clk 0:01:18.3]} 23. Nxf8 {[%clk 0:00:53]} 23... Nxe1 {[%clk
0:01:11.5]} 24. Nxg6 {[%clk 0:00:44.2]} 24... Nxg2 {[%clk 0:01:10.7]} 25. Qh5
{[%clk 0:00:41.9]} 25... Ndf4 {[%clk 0:00:54.8]} 26. Nxf4 {[%clk 0:00:40.4]}
26... Nxf4 {[%clk 0:00:54.9]} 27. Bxf4 {[%clk 0:00:38.6]} 27... Qxf4 {[%clk
0:00:53.9]} 28. Qg6+ {[%clk 0:00:33.7]} 28... Kh8 {[%clk 0:00:51.4]} 29. Qh5+
{[%clk 0:00:33.6]} 29... Kg7 {[%clk 0:00:51.6]} 30. Rd1 {[%clk 0:00:31]} 30...
Rc1 {[%clk 0:00:36.7]} 31. Rxc1 {[%clk 0:00:26.7]} 31... Qxc1+ {[%clk
0:00:37.6]} 32. Kh2 {[%clk 0:00:27.3]} 32... Qh1+ {[%clk 0:00:36.4]} 0-1

[Event "*** Titled Tuesday Blitz"]
[Site "Chess.com"]
[Date "2020.11.10"]
[Round "5"]
[White "Javylavilla"]
[Black "No_t_ime_to_die"]
[Result "0-1"]
[WhiteElo "2261"]
[BlackElo "2479"]
[TimeControl "180+1"]
[EndTime "10:57:53 PST"]
[Termination "No_t_ime_to_die won by checkmate"]

1. e4 {[%clk 0:03:00.9]} 1... c5 {[%clk 0:02:58.4]} 2. Nf3 {[%clk 0:02:59.9]}
2... Nc6 {[%clk 0:02:56.2]} 3. d4 {[%clk 0:02:58.8]} 3... cxd4 {[%clk
0:02:57.1]} 4. Nxd4 {[%clk 0:02:59.3]} 4... Nf6 {[%clk 0:02:38.6]} 5. Nc3 {[%clk
0:02:58.7]} 5... e5 {[%clk 0:02:36.8]} 6. Ndb5 {[%clk 0:02:57.9]} 6... d6 {[%clk
0:02:34.1]} 7. Bg5 {[%clk 0:02:57.8]} 7... a6 {[%clk 0:02:34.7]} 8. Na3 {[%clk
0:02:57.6]} 8... b5 {[%clk 0:02:35.3]} 9. Nd5 {[%clk 0:02:56.7]} 9... Be7 {[%clk
0:02:35]} 10. Bxf6 {[%clk 0:02:57]} 10... Bxf6 {[%clk 0:02:35.3]} 11. c4 {[%clk
0:02:57.8]} 11... b4 {[%clk 0:02:35.7]} 12. Nc2 {[%clk 0:02:58]} 12... O-O
{[%clk 0:02:36.3]} 13. g3 {[%clk 0:02:56.9]} 13... Bg5 {[%clk 0:02:32.5]} 14.
Bg2 {[%clk 0:02:56.3]} 14... a5 {[%clk 0:02:31.8]} 15. O-O {[%clk 0:02:56.1]}
15... Ne7 {[%clk 0:02:27.7]} 16. f4 {[%clk 0:02:54.8]} 16... Nxd5 {[%clk
0:02:24.3]} 17. cxd5 {[%clk 0:02:31.1]} 17... exf4 {[%clk 0:02:18.5]} 18. gxf4
{[%clk 0:02:32]} 18... Bf6 {[%clk 0:02:17.1]} 19. Rb1 {[%clk 0:02:30.3]} 19...
a4 {[%clk 0:02:00.6]} 20. Kh1 {[%clk 0:02:20.2]} 20... Qb6 {[%clk 0:01:55.2]}
21. a3 {[%clk 0:02:06.5]} 21... b3 {[%clk 0:01:50.4]} 22. Nb4 {[%clk 0:02:04.6]}
22... Ba6 {[%clk 0:01:47]} 23. Rf3 {[%clk 0:02:00.6]} 23... Rfc8 {[%clk
0:01:42.3]} 24. Nc6 {[%clk 0:01:54.4]} 24... Bb5 {[%clk 0:01:39.6]} 25. e5
{[%clk 0:01:42.6]} 25... Bxc6 {[%clk 0:01:04.6]} 26. exf6 {[%clk 0:01:41.2]}
26... Bd7 {[%clk 0:00:59.1]} 27. fxg7 {[%clk 0:01:29.1]} 27... Rc2 {[%clk
0:00:56.3]} 28. Qd3 {[%clk 0:01:15.3]} 28... Rac8 {[%clk 0:00:53]} 29. Bh3
{[%clk 0:01:02.5]} 29... Bxh3 {[%clk 0:00:44.9]} 30. Rxh3 {[%clk 0:01:01.6]}
30... Rc1+ {[%clk 0:00:45.5]} 31. Rxc1 {[%clk 0:01:01.3]} 31... Rxc1+ {[%clk
0:00:46.4]} 32. Kg2 {[%clk 0:01:01.4]} 32... Qg1+ {[%clk 0:00:42.7]} 33. Kf3
{[%clk 0:01:01.2]} 33... Rf1+ {[%clk 0:00:35.4]} 34. Ke4 {[%clk 0:00:52.2]}
34... f5+ {[%clk 0:00:35.1]} 35. Kxf5 {[%clk 0:00:41.1]} 35... Qg6# {[%clk
0:00:34.3]} 0-1